Cogmind - Beta 10.2 @@@ ROGUE MODE // 2021.01.20 @ 17:24:44 Player: zzxc Result: Self-destructed Performance ------------- Evolutions (4) 2000 Regions Visited (8) 1600 Robots Destroyed (1) 5 Value Destroyed (0) 0 Prototype IDs (23) 460 Alien Tech Used (0) 0 Bonus (1260) 1260 TOTAL SCORE: 5325 Bonus ------- Pacifist 1125 Aligned with FarCom 300 Friendly Fire -165 Cogmind --------- Core Integrity 765/850 Matter 300/300 Energy 125/125 System Corruption 0% Temperature Cool (0) Movement Core (50) Location -6/Lower Caves Parts ------- > --- POWER (2) -------- Light Ion Engine > --- PROPULSION (6) --- Light Treads > --- UTILITY (5) ------ Hacking Suite > --- WEAPON (2) ------- (None) > --- INVENTORY (4) ---- Hardened Light Armor Plating Assault Cannon Assault Cannon Field Lobotomy Kit Peak State ------------ > --- POWER ------------ (None) > --- PROPULSION ------- Armored Treads Advanced Treads Aluminum Leg Aluminum Leg > --- UTILITY ---------- Visual Processing Unit Hacking Suite > --- WEAPON ----------- (None) > --- INVENTORY -------- Light Ion Engine Assault Cannon Assault Cannon Field Lobotomy Kit [Rating: 14] Favorites ----------- Power Light Ion Engine Engine Light Ion Engine Propulsion Aluminum Leg Treads Armored Treads Leg Aluminum Leg Utility Hacking Suite Processor Visual Processing Unit Hackware Hacking Suite Weapon Assault Cannon Ballistic Gun Assault Rifle Ballistic Cannon Assault Cannon Build | -11 -10 -10 -10 -9 -8 -7 -6 -6 ------- Run | Scr Mat Min Exi Min Mat Fac Fac Low Slots Evolved 8 | . . . . . 4 2 2 . Power 1 | . . . . . 1 . . . Propulsion 4 | . . . . . 2 1 1 . Utility 3 | . . . . . 1 1 1 . Weapon . | . . . . . . . . . Parts Attached 9 | . . . . . 4 . 2 3 Power 1 | . . . . . . . . 1 Engine 1 | . . . . . . . . 1 Core . | . . . . . . . . . Reactor . | . . . . . . . . . Propulsion 5 | . . . . . 2 . 2 1 Treads 5 | . . . . . 2 . 2 1 Leg . | . . . . . . . . . Wheel . | . . . . . . . . . Hover . | . . . . . . . . . Flight . | . . . . . . . . . Utility 2 | . . . . . 2 . . . Device . | . . . . . . . . . Storage . | . . . . . . . . . Processor 1 | . . . . . 1 . . . Hackware 1 | . . . . . 1 . . . Protection . | . . . . . . . . . Artifact . | . . . . . . . . . Weapon 1 | . . . . . . . . 1 Energy Gun . | . . . . . . . . . Energy Cannon . | . . . . . . . . . Ballistic Gun . | . . . . . . . . . Ballistic Cannon 1 | . . . . . . . . 1 Launcher . | . . . . . . . . . Special Weapon . | . . . . . . . . . Impact Weapon . | . . . . . . . . . Slashing Weapon . | . . . . . . . . . Piercing Weapon . | . . . . . . . . . Special Melee Weapon . | . . . . . . . . . Unidentified Prototypes . | . . . . . . . . . Parts Lost 4 | . . . . . 1 . 1 2 Power . | . . . . . . . . . Propulsion 4 | . . . . . 1 . 1 2 Utility . | . . . . . . . . . Weapon . | . . . . . . . . . Highest Loss Streak 2 | . . . . . 1 . 1 2 Average Slot Usage (%) 29 | . 28 28 28 28 39 38 31 26 Engine 1 | . . . . . . . . 3 Treads 10 | . . . . . 9 15 13 15 Leg 9 | . 28 28 28 28 17 7 6 . Processor 1 | . . . . . 9 7 4 . Hackware 4 | . . . . . 4 7 6 6 Naked Turns . | . . . . . . . . . Heaviest Build 5 | . . . . . . . . 5 Greatest Support 3 | 3 3 3 3 3 3 3 3 3 Greatest Overweight (x) 1 | . . . . . . . . 1 Average Overweight (x) . | . . . . . . . . . Largest Inventory Capacity 4 | 4 4 4 4 4 4 4 4 4 Average Capacity 4 | 4 4 4 4 4 4 4 4 4 Most Carried 4 | 4 1 1 2 2 4 4 4 4 Average Carried 3 | 3 1 1 1 2 2 4 4 3 Final Capacity 4 | 4 4 4 4 4 4 4 4 4 Final Carried 4 | 1 1 1 2 2 4 4 4 4 Class Distribution -------------------- 100% | Mutant Dominant Class ---------------- Mutant | -10/Materials Mutant | -10/Mines Mutant | -10/Exiles Mutant | -9/Mines Mutant | -8/Materials Mutant | -7/Factory Mutant | -6/Factory Mutant | -6/Lower Caves Resources | -11 -10 -10 -10 -9 -8 -7 -6 -6 ----------- Run | Scr Mat Min Exi Min Mat Fac Fac Low Matter Collected 290 | 200 . . . . . . . 90 Remotely . | . . . . . . . . . Salvage Created 57 | . . . . . . . . 57 Parts 2 | . . . . . . . . 2 Haulers Intercepted . | . . . . . . . . . Recyclers Shooed . | . . . . . . . . . Parts Field Recycled . | . . . . . . . . . Retrieved Matter . | . . . . . . . . . Parts Self-Destructed 4 | . . . . . . . . 4 Prevented . | . . . . . . . . . Kills | -11 -10 -10 -10 -9 -8 -7 -6 -6 ------- Run | Scr Mat Min Exi Min Mat Fac Fac Low Combat Hostiles Destroyed . | . . . . . . . . . Classes Destroyed 1 | . . . . . . . . 1 Savage 1 | . . . . . . . . 1 Best Kill Streak . | . . . . . . . . . Combat Bots Only . | . . . . . . . . . Max Kills in Single Turn 1 | . . . . . . . . 1 Gunslinging . | . . . . . . . . . Exploded . | . . . . . . . . . Melee . | . . . . . . . . . Uniques/NPCs Destroyed . | . . . . . . . . . Combat | -11 -10 -10 -10 -9 -8 -7 -6 -6 -------- Run | Scr Mat Min Exi Min Mat Fac Fac Low Damage Taken 952 | . 20 120 . 27 393 . 175 217 Core 226 | . 20 53 . 14 54 . 45 40 Absorbed by Shields . | . . . . . . . . . Core Remaining (%) 88 | 100 . . . 65 90 100 . . Volleys Fired 3 | . . . . . . . . 3 Largest 1 | . . . . . . . . 1 Hottest 44 | . . . . . . . . 44 Shots Fired 3 | . . . . . . . . 3 Gun . | . . . . . . . . . Cannon 3 | . . . . . . . . 3 Launcher . | . . . . . . . . . Special . | . . . . . . . . . Kinetic 3 | . . . . . . . . 3 Thermal . | . . . . . . . . . Explosive . | . . . . . . . . . Electromagnetic . | . . . . . . . . . Robot Hit Streak 3 | . . . . . . . . 3 Robot Miss Streak . | . . . . . . . . . Penetration Max . | . . . . . . . . . Secondary Targets . | . . . . . . . . . Shots Hit Robots 3 | . . . . . . . . 3 Core Hits 5 | . . . . 1 . . 1 3 Critical Hits . | . . . . . . . . . Critical Kills . | . . . . . . . . . Critical Parts Destroyed . | . . . . . . . . . Melee Attacks . | . . . . . . . . . Impact . | . . . . . . . . . Slashing . | . . . . . . . . . Piercing . | . . . . . . . . . Sneak Attacks . | . . . . . . . . . Combat Hostiles . | . . . . . . . . . Follow-up Attacks . | . . . . . . . . . Damage Inflicted 71 | . . . . 5 . . 1 65 Guns . | . . . . . . . . . Cannons 65 | . . . . . . . . 65 Explosions . | . . . . . . . . . Melee . | . . . . . . . . . Ramming 6 | . . . . 5 . . 1 . Kinetic 65 | . . . . . . . . 65 Thermal . | . . . . . . . . . Explosive . | . . . . . . . . . Electromagnetic . | . . . . . . . . . Impact . | . . . . . . . . . Slashing . | . . . . . . . . . Piercing . | . . . . . . . . . Highest Corruption . | . . . . . . . . . Average Corruption . | . . . . . . . . . Corruption Purged . | . . . . . . . . . Overload Shots . | . . . . . . . . . Overflow Damage . | . . . . . . . . . Projectiles . | . . . . . . . . . Explosions . | . . . . . . . . . Melee . | . . . . . . . . . Knockbacks . | . . . . . . . . . Impact . | . . . . . . . . . Kinetic . | . . . . . . . . . Secondary . | . . . . . . . . . Self-Inflicted Damage 2 | . . . . 2 . . . . Shots . | . . . . . . . . . Rammed 2 | . . . . 1 . . 1 . Targets Rammed 2 | . . . . 1 . . 1 . Kicked . | . . . . . . . . . Crushed . | . . . . . . . . . Highest Temperature . | . . . . . . . . . Average Temperature . | . . . . . . . . . Received Heat Transfer 267 | . 12 24 . 15 81 . 57 78 Siege Activations . | . . . . . . . . . Robots Corrupted . | . . . . . . . . . Combat Hostiles . | . . . . . . . . . Parts Fried . | . . . . . . . . . Impact Corruptions . | . . . . . . . . . Robots Melted . | . . . . . . . . . Combat Hostiles . | . . . . . . . . . Parts Melted . | . . . . . . . . . Heat Transferred . | . . . . . . . . . Parts Sabotaged . | . . . . . . . . . Parts Stolen . | . . . . . . . . . Parts Stripped . | . . . . . . . . . Power Chain Reactions . | . . . . . . . . . Missiles Intercepted . | . . . . . . . . . Alert | -11 -10 -10 -10 -9 -8 -7 -6 -6 ------- Run | Scr Mat Min Exi Min Mat Fac Fac Low Peak Influence 90 | . 15 90 . . 30 13 56 . Initial 13 | . . 5 . . . 13 6 . Average 13 | . 5 43 . . 3 13 21 . Maximum Alert Level . | . . . . . . . . . Low Security (%) 100 | 100 100 100 . 100 100 100 100 . Level 1 . | . . . . . . . . . Level 2 . | . . . . . . . . . Level 3 . | . . . . . . . . . Level 4 . | . . . . . . . . . Level 5 . | . . . . . . . . . High Security . | . . . . . . . . . Max Security . | . . . . . . . . . Squads Dispatched 2 | . 2 . . . . . . . Investigation . | . . . . . . . . . Extermination . | . . . . . . . . . Reinforcement 2 | . 2 . . . . . . . Assault . | . . . . . . . . . Garrison . | . . . . . . . . . Intercept . | . . . . . . . . . Construction Impeded . | . . . . . . . . . Haulers Reinforced . | . . . . . . . . . Stealth | -11 -10 -10 -10 -9 -8 -7 -6 -6 --------- Run | Scr Mat Min Exi Min Mat Fac Fac Low Distress Signals . | . . . . . . . . . Communications Jammed . | . . . . . . . . . Distress Signals . | . . . . . . . . . Times Spotted 38 | . 4 8 . 2 15 . 5 4 Peak Tracking Total 17 | . 2 7 . 2 17 . 4 3 Tactical Retreats 2 | . . . . . 1 . 1 . Traps | -11 -10 -10 -10 -9 -8 -7 -6 -6 ------- Run | Scr Mat Min Exi Min Mat Fac Fac Low Traps Triggered 1 | . . . . . . . 1 . Indirectly . | . . . . . . . . . Trap Hack Attempts . | . . . . . . . . . Triggered . | . . . . . . . . . Disarmed . | . . . . . . . . . Reprogrammed . | . . . . . . . . . Reused . | . . . . . . . . . Traps Extracted . | . . . . . . . . . Installed . | . . . . . . . . . Triggered . | . . . . . . . . . Machines | -11 -10 -10 -10 -9 -8 -7 -6 -6 ---------- Run | Scr Mat Min Exi Min Mat Fac Fac Low Machines Disabled . | . . . . . . . . . Max in Single Turn . | . . . . . . . . . Machines Sabotaged . | . . . . . . . . . Garrisons Compromised . | . . . . . . . . . Overloaded Fab Kills . | . . . . . . . . . Fab Network Shutdowns . | . . . . . . . . . Hacking | -11 -10 -10 -10 -9 -8 -7 -6 -6 --------- Run | Scr Mat Min Exi Min Mat Fac Fac Low Machines Accessed 1 | . . . 1 . . . . . Terminals . | . . . . . . . . . Fabricators . | . . . . . . . . . Repair Stations . | . . . . . . . . . Recycling Units . | . . . . . . . . . Scanalyzers . | . . . . . . . . . Garrison Access . | . . . . . . . . . Total Hacks 1 | . . . 1 . . . . . Successful 1 | . . . 1 . . . . . Failed . | . . . . . . . . . Catastrophic . | . . . . . . . . . Database Lockouts . | . . . . . . . . . Manual 1 | . . . 1 . . . . . Terminals . | . . . . . . . . . Fabricators . | . . . . . . . . . Repair Stations . | . . . . . . . . . Recycling Units . | . . . . . . . . . Scanalyzers . | . . . . . . . . . Garrison Access . | . . . . . . . . . Terminal Hacks 1 | . . . 1 . . . . . EX-Prototype ID Bank 1 | . . . 1 . . . . . Fabricator Hacks . | . . . . . . . . . Repair Station Hacks . | . . . . . . . . . Recycling Unit Hacks . | . . . . . . . . . Scanalyzer . | . . . . . . . . . Garrison Access Hacks . | . . . . . . . . . Unauthorized Hacks . | . . . . . . . . . Terminals . | . . . . . . . . . Fabricators . | . . . . . . . . . Repair Stations . | . . . . . . . . . Recycling Units . | . . . . . . . . . Scanalyzers . | . . . . . . . . . Garrison Access . | . . . . . . . . . Data Cores Recovered . | . . . . . . . . . Used . | . . . . . . . . . Hacking Detections . | . . . . . . . . . Full Trace Events . | . . . . . . . . . Feedback Events . | . . . . . . . . . Feedback Blocked . | . . . . . . . . . Robot Schematics Acquired . | . . . . . . . . . Robots Built . | . . . . . . . . . Matter . | . . . . . . . . . Time . | . . . . . . . . . Total Robot Build Rating . | . . . . . . . . . Part Schematics Acquired . | . . . . . . . . . Parts Built . | . . . . . . . . . Matter . | . . . . . . . . . Time . | . . . . . . . . . Total Part Build Rating . | . . . . . . . . . Parts Repaired . | . . . . . . . . . Time . | . . . . . . . . . Parts Recycled . | . . . . . . . . . Recycled Matter . | . . . . . . . . . Retrieved Matter . | . . . . . . . . . Retrieved Components . | . . . . . . . . . Parts Scanalyzed . | . . . . . . . . . Part Schematics Acquired . | . . . . . . . . . Parts Damaged . | . . . . . . . . . Bothacking | -11 -10 -10 -10 -9 -8 -7 -6 -6 ------------ Run | Scr Mat Min Exi Min Mat Fac Fac Low Used RIF Installer . | . . . . . . . . . Robots Hacked . | . . . . . . . . . Non-combat . | . . . . . . . . . Combat . | . . . . . . . . . Robot Hacks Applied . | . . . . . . . . . Relay Couplers Released . | . . . . . . . . . Robots Rewired . | . . . . . . . . . Allies Hacked . | . . . . . . . . . Hacks Repelled . | . . . . . . . . . Allies | -11 -10 -10 -10 -9 -8 -7 -6 -6 -------- Run | Scr Mat Min Exi Min Mat Fac Fac Low Total Allies 2 | . . 2 . . . . . . Largest Group 2 | . . 2 . . . . . . Highest-Rated Group 38 | . . 38 . . . . . . Highest-Rated Ally 31 | . . 31 . . . . . . Total Orders . | . . . . . . . . . Ally Attacks 9 | . . 9 . . . . . . Total Damage 145 | . . 145 . . . . . . Kills 4 | . . 4 . . . . . . Allies Corrupted . | . . . . . . . . . Allies Melted . | . . . . . . . . . Intel | -11 -10 -10 -10 -9 -8 -7 -6 -6 ------- Run | Scr Mat Min Exi Min Mat Fac Fac Low Robot Analysis Total . | . . . . . . . . . Derelict Logs Recovered 2 | . . . . . . . . 2 Drone Launches . | . . . . . . . . . Drone Recoveries . | . . . . . . . . . Exploration | -11 -10 -10 -10 -9 -8 -7 -6 -6 ------------- Run | Scr Mat Min Exi Min Mat Fac Fac Low Turns Passed 831 | 4 34 40 112 10 104 56 52 419 Spaces Moved 1482 | 1 68 80 221 18 141 111 96 746 Core 1482 | 1 68 80 221 18 141 111 96 746 Treads . | . . . . . . . . . Legs . | . . . . . . . . . Wheels . | . . . . . . . . . Hover . | . . . . . . . . . Flight . | . . . . . . . . . Fastest Speed 50 | 50 50 50 50 50 50 50 50 50 Average Speed 50 | 50 50 50 50 50 50 50 50 50 Slowest Speed 100 | 50 50 50 50 50 50 50 50 100 Overloaded Moves . | . . . . . . . . . Propulsion Burnouts . | . . . . . . . . . Robots Hopped . | . . . . . . . . . Cave-ins Triggered . | . . . . . . . . . Exploration Rate (%) 27 | 2 19 24 60 14 25 5 6 94 Regions Visited 8 Branch Regions 4 Pre-discovered Areas . | . . . . . . . . . Known Exits Taken . | . . . . . . . . . Unknown Exits Taken 8 | 1 1 1 1 1 1 1 1 . Scrap Searched 8 | . . 1 . . . . . 7 Spaces Dug . | . . . . . . . . . Terrain Destroyed . | . . . . . . . . . Melee . | . . . . . . . . . Projectile . | . . . . . . . . . AOE . | . . . . . . . . . Terrain Rammed . | . . . . . . . . . Walls Destroyed . | . . . . . . . . . Machines Disabled . | . . . . . . . . . Actions | -11 -10 -10 -10 -9 -8 -7 -6 -6 --------- Run | Scr Mat Min Exi Min Mat Fac Fac Low Total 1559 | 7 67 79 221 18 171 110 98 788 Wait 58 | . . . . . 25 . . 33 Move 1475 | . 67 79 220 17 140 110 96 746 Hop . | . . . . . . . . . Pick Up 5 | . . . 1 . 2 . . 2 Fast Attach 6 | . . . . . 4 . 2 . Attach 3 | . . . . . . . . 3 Detach 1 | . . . . . . . . 1 Swap . | . . . . . . . . . Drop 7 | 7 . . . . . . . . Fire 3 | . . . . . . . . 3 Melee . | . . . . . . . . . Ram 1 | . . . . 1 . . . . Kick . | . . . . . . . . . Crush . | . . . . . . . . . Escape Stasis . | . . . . . . . . . Rewire . | . . . . . . . . . Trap . | . . . . . . . . . Miscellaneous . | . . . . . . . . . Route ------- -11/Scrapyard -10/Materials -10/Mines -10/Exiles -9/Mines -8/Materials -7/Factory -6/Factory (discovered 2 exits: [*Low x2]) -6/Lower Caves (discovered 1 exit: [*Low]) History --------- Turn | Location | Event 5 | -11/Scrapyard | Discovered new exit (range 0) 5 | -11/Scrapyard | Entered Materials 33 | -10/Materials | Discovered new exit (range 11) 39 | -10/Materials | Entered Mines 77 | -10/Mines | Deemed a non-threat by the Exiles lab entrance 77 | -10/Mines | Discovered new exit (range 5) 79 | -10/Mines | Entered Exiles 91 | -10/Exiles | Met 8R-AWN 100 | -10/Exiles | Met EX-HEX 117 | -10/Exiles | Met EX-BIN 123 | -10/Exiles | Aligned with FarCom system 123 | -10/Exiles | Given EX-Vault access code 137 | -10/Exiles | Opened EX-Vault 141 | -10/Exiles | Found Field Lobotomy Kit 152 | -10/Exiles | Warned to stay clear of 0b10 Research branches 168 | -10/Exiles | Met EX-DEC 185 | -10/Exiles | Discovered new exit (range 14) 191 | -10/Exiles | Left Exiles lab with Field Lobotomy Kit 191 | -10/Exiles | Entered Mines 196 | -9/Mines | Discovered new exit (range 14) 201 | -9/Mines | Entered Materials 201 | -8/Materials | Evolved 4 slots: Power x1, Propulsion x2, Utility x1 296 | -8/Materials | Discovered new exit (range 17) 305 | -8/Materials | Entered Factory 305 | -7/Factory | Evolved 2 slots: Propulsion x1, Utility x1 318 | -7/Factory | Build established: Mutant 353 | -7/Factory | Discovered new exit (range 15) 361 | -7/Factory | Entered another Factory area 361 | -6/Factory | Evolved 2 slots: Propulsion x1, Utility x1 381 | -6/Factory | Spotted B-75 Beast 405 | -6/Factory | Discovered new exit (range 9) 412 | -6/Factory | Discovered new exit (range 13) 413 | -6/Factory | Entered Lower Caves 562 | -6/Lower Caves | Learned Factory garrison access intel 579 | -6/Lower Caves | Discovered new exit (range 10) 667 | -6/Lower Caves | Learned Factory stockpile data 799 | -6/Lower Caves | Attracted the attention of an 0b10 checkpoint 832 | -6/Lower Caves | Self-destructed Last Messages --------------- 00734_ Searching scrap... 00734_ Found Lrn. Tractor Beam. 00734_ Found 13 Matter. 00734_ Found 23 Matter. 00734_ Searching scrap... 00734_ Found Mak. Shrapnel Gun. 00734_ Found Hpw. Shock Rifle. 00734_ Found Mak. Axe. 00734_ Found 21 Matter. 00735_ Searching scrap... 00735_ Found Imp. Heavy Armor Plating. 00735_ Found Adv. Heat Sink. 00735_ Found 16 Matter. 00736_ Searching scrap... 00736_ Found Imp. Grenade Launcher. 00736_ Found Fusion Compressor. 00736_ Found 27 Matter. 00799_ Y-54 Guardian: "INTERCEPTING UNREGISTERED DERELICT." 00802_ Arm. Treads destroyed. 00804_ Adv. Treads destroyed. Map ----- +----------------------------------------------------+ | ????# ## #??????????? | | ????# # ### ##?##??????? | | ????## ## #### ##?## ## ##?????? | | ?????###### ## #?# ###### ##????? | | ??????????# ### ### #????? | | ??????????# ## ## ## #??## | | ??????????## ##?# #? # | | ???????????## ### #### #???# ### | | ????????????###### ##??###????### | | ????????????????# ##???###?????# | | ???????????????# ####???## ###### | | ??????????????# ###### ##??????# #? | | ?????????????# ?????# #???????# #?? | | ?????????????# ??????# #???????# #??? | | ?????????????####???#### #??###### #???## | | ????????????????????# #?## #???## | | ????????????????????## ### ##?## | | ?????????????????????# ## ### #?# | | ?????????????????????# ######?# ##?# | | ?????????????????????# ##### #???# ##### | | ?????????????????????## #???## #???# | | ??????????????????????## #???## #???# | | ???????????????##??????####???# #???## ## | | ??????????????## #??????#####?# #????# ### | | ??????????????# ##????# ### ##?## #?## | | ???????????????# ###??#@ ### ## #??# | | ???????????????# ##?# ## #??# | | ????????????????# #?## ##?# | | ?????????????????# ##?### #### # | | ?????????????????# ##### ###? # | | ???????????????### ##?# # | | ?????????####?## #?# | | ?????????#[$### ### ## | | ?????????#]!!$# ### ### ## ?## | | ?????????#%!!%+ ### #?## #### ???# ### | | ?????????#%[%%# ##?## #####????##??# | | ?????????#$/### ##?## #?????####?? | | ?????????####?# ##?# #????## ### | | ?????????????## ### ### ##??### | | ?????????????# ### ### #??## | | ?????????????# ## ### #### | | ?????????????# ## ## | | ?????????????## ### | | ??????????????##### ## ###### ### | | ??????????????????## #### ######## #?# | | ???????????????????####??# #???## #?## ### | | ?????????????????????????# ##????####??###?### | | ?????????????????????????#######?????????????????? | | ?????????????????????????????????????????????????? | | ?????????????????????????????????????????????????? | +----------------------------------------------------+ Best States ------------- Heat Dissipation 37 Energy Generation 10 Energy Capacity 125 Matter Stores 300 Matter Capacity 300 Sight Range 18 Terrain Scan Density 10 Evasion (%) 50 Offensive Hacking 10 Item Schematics ----------------- None Robot Schematics ------------------ None Fabricated ------------ Nothing Alien Tech Used ----------------- None Achievements -------------- None Challenges ------------ None Game ------ Seed DefenseFireBlaster Manual? 1 Play Time 00:08:21 Cumulative 384.6 hours Start 2021.01.20 @ 17:18:47 End 2021.01.20 @ 17:24:44 Sessions 1 Manual Loads 0 Difficulty Rogue Special Mode None Game No. 714 Rogue 714 Adventurer 0 Explorer 0 Win Type - Total 59 Types 45/5/3/2/1/1/2/0/0 Lore% 93 Gallery% 93 Achievement% 76 Wizard Run 0 Options --------- ASCII 1 Keyboard 0 Movement Numpad Keybinds 0 Fullscreen 2 Font 24/Terminus Map View 76x50 Tactical HUD 1 Map Filters NONE Filters NONE Steam 1 RUN: 913f574b-a4b9-43cf-a5e9-b3ab759b148f